[Event "*** Titled Tuesday Blitz"]
[Site "Chess.com"]
[Date "2020.05.05"]
[Round "2"]
[White "dcann0n88"]
[Black "WiktoriaPOL"]
[Result "1-0"]
[WhiteElo "2363"]
[BlackElo "2018"]
[TimeControl "180+1"]
[EndTime "10:19:54 PDT"]
[Termination "dcann0n88 won by checkmate"]

1. e4 {[%clk 0:03:00.9]} 1... c5 {[%clk 0:02:58.7]} 2. Nf3 {[%clk 0:03:00.1]}
2... d6 {[%clk 0:02:58.3]} 3. d4 {[%clk 0:03:00.6]} 3... cxd4 {[%clk 0:02:57.9]}
4. Nxd4 {[%clk 0:03:01.5]} 4... Nf6 {[%clk 0:02:57.1]} 5. Nc3 {[%clk 0:03:01.9]}
5... a6 {[%clk 0:02:57.1]} 6. Be3 {[%clk 0:03:00.9]} 6... e5 {[%clk 0:02:56]} 7.
Nb3 {[%clk 0:03:01.3]} 7... Be6 {[%clk 0:02:55.5]} 8. f3 {[%clk 0:03:01.1]} 8...
Nbd7 {[%clk 0:02:53.9]} 9. Qd2 {[%clk 0:03:01.5]} 9... Be7 {[%clk 0:02:51.3]}
10. O-O-O {[%clk 0:03:01.8]} 10... b5 {[%clk 0:02:51]} 11. g4 {[%clk 0:03:01.6]}
11... Nb6 {[%clk 0:02:50]} 12. g5 {[%clk 0:02:58.2]} 12... Nfd7 {[%clk
0:02:46.3]} 13. Kb1 {[%clk 0:02:30.8]} 13... Nc4 {[%clk 0:02:39]} 14. Bxc4
{[%clk 0:02:30.6]} 14... bxc4 {[%clk 0:02:37.6]} 15. Nc1 {[%clk 0:02:30.5]}
15... Rb8 {[%clk 0:02:27.3]} 16. Nd5 {[%clk 0:02:01.1]} 16... Bxd5 {[%clk
0:02:21]} 17. Qxd5 {[%clk 0:02:02]} 17... Qc7 {[%clk 0:02:15.4]} 18. h4 {[%clk
0:01:55.4]} 18... c3 {[%clk 0:02:10.5]} 19. b3 {[%clk 0:01:54.6]} 19... Nb6
{[%clk 0:01:58.9]} 20. Qa5 {[%clk 0:01:51.1]} 20... Qb7 {[%clk 0:01:50]} 21.
Bxb6 {[%clk 0:01:45.9]} 21... Qxb6 {[%clk 0:01:48.4]} 22. Qxc3 {[%clk
0:01:46.3]} 22... O-O {[%clk 0:01:43.7]} 23. Qd3 {[%clk 0:01:23.2]} 23... Rfc8
{[%clk 0:01:38.4]} 24. Ne2 {[%clk 0:01:16.1]} 24... a5 {[%clk 0:01:30.8]} 25.
Nc3 {[%clk 0:01:13.7]} 25... Qc5 {[%clk 0:01:23]} 26. Nd5 {[%clk 0:01:12.8]}
26... Bf8 {[%clk 0:01:17.5]} 27. Rhg1 {[%clk 0:01:06.4]} 27... a4 {[%clk
0:01:09.1]} 28. Rg2 {[%clk 0:01:00.9]} 28... axb3 {[%clk 0:01:04.7]} 29. cxb3
{[%clk 0:00:57.1]} 29... Qa3 {[%clk 0:00:49.9]} 30. Rdg1 {[%clk 0:00:51.4]}
30... Rb7 {[%clk 0:00:41.1]} 31. f4 {[%clk 0:00:45.8]} 31... Rcb8 {[%clk
0:00:37.6]} 32. Rb2 {[%clk 0:00:39.9]} 32... exf4 {[%clk 0:00:24.6]} 33. Nxf4
{[%clk 0:00:20.6]} 33... g6 {[%clk 0:00:20]} 34. Nd5 {[%clk 0:00:20.6]} 34...
Bg7 {[%clk 0:00:19]} 35. Nf6+ {[%clk 0:00:21.1]} 35... Bxf6 {[%clk 0:00:18.5]}
36. gxf6 {[%clk 0:00:22]} 36... Qc5 {[%clk 0:00:17.6]} 37. Rc1 {[%clk 0:00:20]}
37... Qe5 {[%clk 0:00:16.9]} 38. Qf3 {[%clk 0:00:17.8]} 38... Rb4 {[%clk
0:00:14]} 39. Rbc2 {[%clk 0:00:14.3]} 39... h5 {[%clk 0:00:11]} 40. Rc8+ {[%clk
0:00:14.1]} 40... Rxc8 {[%clk 0:00:09.8]} 41. Rxc8+ {[%clk 0:00:15]} 41... Kh7
{[%clk 0:00:10]} 42. Rf8 {[%clk 0:00:14.1]} 42... Qe6 {[%clk 0:00:08.9]} 43. Rd8
{[%clk 0:00:13.3]} 43... Rxe4 {[%clk 0:00:07.7]} 44. Qd3 {[%clk 0:00:13.5]}
44... Re1+ {[%clk 0:00:06.2]} 45. Kb2 {[%clk 0:00:12.4]} 45... Qe2+ {[%clk
0:00:06.2]} 46. Qxe2 {[%clk 0:00:12.2]} 46... Rxe2+ {[%clk 0:00:06.6]} 47. Kb1
{[%clk 0:00:12.4]} 47... Re1+ {[%clk 0:00:06.6]} 48. Kb2 {[%clk 0:00:11.9]}
48... Re2+ {[%clk 0:00:06.8]} 49. Ka3 {[%clk 0:00:12.5]} 49... Re6 {[%clk
0:00:06.3]} 50. Rd7 {[%clk 0:00:12.1]} 50... Rxf6 {[%clk 0:00:06.3]} 51. Kb4
{[%clk 0:00:12.5]} 51... Re6 {[%clk 0:00:05.5]} 52. a4 {[%clk 0:00:12.8]} 52...
Kg8 {[%clk 0:00:05.6]} 53. a5 {[%clk 0:00:13.2]} 53... Kf8 {[%clk 0:00:05.2]}
54. a6 {[%clk 0:00:13.6]} 54... Re4+ {[%clk 0:00:05]} 55. Kb5 {[%clk 0:00:13.6]}
55... Re5+ {[%clk 0:00:04.2]} 56. Kc6 {[%clk 0:00:13.9]} 56... Re1 {[%clk
0:00:03.1]} 57. a7 {[%clk 0:00:14]} 57... Ra1 {[%clk 0:00:02.7]} 58. Rd8+ {[%clk
0:00:14.4]} 58... Ke7 {[%clk 0:00:02.9]} 59. a8=Q {[%clk 0:00:15.3]} 59... Rxa8
{[%clk 0:00:02.5]} 60. Rxa8 {[%clk 0:00:16.2]} 60... f5 {[%clk 0:00:02.9]} 61.
Kd5 {[%clk 0:00:16.1]} 61... f4 {[%clk 0:00:02.9]} 62. Ra7+ {[%clk 0:00:17]}
62... Kf6 {[%clk 0:00:02.7]} 63. Kxd6 {[%clk 0:00:17.6]} 63... f3 {[%clk
0:00:02.6]} 64. Ra1 {[%clk 0:00:18.5]} 64... Kf5 {[%clk 0:00:01.5]} 65. Rf1
{[%clk 0:00:19.4]} 65... Kf4 {[%clk 0:00:01.8]} 66. b4 {[%clk 0:00:20.3]} 66...
Ke3 {[%clk 0:00:02.2]} 67. b5 {[%clk 0:00:21.2]} 67... f2 {[%clk 0:00:02.6]} 68.
b6 {[%clk 0:00:21.4]} 68... Ke2 {[%clk 0:00:03.2]} 69. Ra1 {[%clk 0:00:21.6]}
69... f1=Q {[%clk 0:00:02.6]} 70. Rxf1 {[%clk 0:00:22.1]} 70... Kxf1 {[%clk
0:00:03.2]} 71. b7 {[%clk 0:00:23]} 71... Kg2 {[%clk 0:00:03.1]} 72. b8=Q {[%clk
0:00:23.9]} 72... Kg3 {[%clk 0:00:03.1]} 73. Qg8 {[%clk 0:00:24.7]} 73... Kxh4
{[%clk 0:00:02.8]} 74. Qxg6 {[%clk 0:00:25.6]} 74... Kh3 {[%clk 0:00:02.3]} 75.
Ke5 {[%clk 0:00:26.2]} 75... h4 {[%clk 0:00:01.8]} 76. Kf4 {[%clk 0:00:26.6]}
76... Kh2 {[%clk 0:00:02.1]} 77. Kf3 {[%clk 0:00:26.8]} 77... h3 {[%clk
0:00:02.3]} 78. Kf2 {[%clk 0:00:27.3]} 78... Kh1 {[%clk 0:00:02.5]} 79. Qg1#
{[%clk 0:00:28.2]} 1-0

[Event "*** Titled Tuesday Blitz"]
[Site "Chess.com"]
[Date "2020.05.05"]
[Round "2"]
[White "MikaelyanArman"]
[Black "Hasangatin_Ramil"]
[Result "1/2-1/2"]
[WhiteElo "2737"]
[BlackElo "2519"]
[TimeControl "180+1"]
[EndTime "10:20:04 PDT"]
[Termination "Game drawn - insufficient material"]

1. e4 {[%clk 0:03:00.9]} 1... d5 {[%clk 0:02:59.1]} 2. exd5 {[%clk 0:03:00.8]}
2... Qxd5 {[%clk 0:03:00]} 3. Nc3 {[%clk 0:03:01.2]} 3... Qd6 {[%clk 0:03:00.1]}
4. d4 {[%clk 0:03:00.6]} 4... Nf6 {[%clk 0:03:00]} 5. Nf3 {[%clk 0:03:00.8]}
5... c6 {[%clk 0:03:00.3]} 6. Ne5 {[%clk 0:02:59.1]} 6... Nbd7 {[%clk
0:03:00.4]} 7. Nc4 {[%clk 0:02:58.7]} 7... Qc7 {[%clk 0:03:00.3]} 8. Qf3 {[%clk
0:02:56.4]} 8... Nb6 {[%clk 0:03:00.2]} 9. Bf4 {[%clk 0:02:53]} 9... Qd8 {[%clk
0:03:00.2]} 10. Ne5 {[%clk 0:02:47.4]} 10... Be6 {[%clk 0:02:59.4]} 11. O-O-O
{[%clk 0:02:37.8]} 11... Nbd5 {[%clk 0:02:58.5]} 12. Bc4 {[%clk 0:02:25]} 12...
Nxf4 {[%clk 0:02:53.7]} 13. Qxf4 {[%clk 0:02:21.1]} 13... Bxc4 {[%clk
0:02:53.3]} 14. Nxc4 {[%clk 0:02:22]} 14... e6 {[%clk 0:02:53.5]} 15. Ne5 {[%clk
0:02:09.5]} 15... Be7 {[%clk 0:02:52.8]} 16. h4 {[%clk 0:02:04.8]} 16... O-O
{[%clk 0:02:52.1]} 17. g4 {[%clk 0:02:03.2]} 17... Nd5 {[%clk 0:02:52]} 18. Nxd5
{[%clk 0:02:01.9]} 18... exd5 {[%clk 0:02:38.3]} 19. g5 {[%clk 0:01:51.6]} 19...
Bd6 {[%clk 0:02:35.8]} 20. Qg4 {[%clk 0:01:45.4]} 20... Qc8 {[%clk 0:02:24.5]}
21. Qxc8 {[%clk 0:01:22.4]} 21... Raxc8 {[%clk 0:02:22.2]} 22. Rde1 {[%clk
0:01:15]} 22... f6 {[%clk 0:02:14.6]} 23. Nd3 {[%clk 0:00:57.8]} 23... Rce8
{[%clk 0:01:46.8]} 24. Kd2 {[%clk 0:00:50.9]} 24... Re4 {[%clk 0:01:08.5]} 25.
c3 {[%clk 0:00:22.5]} 25... Rfe8 {[%clk 0:01:02.6]} 26. f3 {[%clk 0:00:19.1]}
26... Rxe1 {[%clk 0:00:55.6]} 27. Rxe1 {[%clk 0:00:19.6]} 27... Rxe1 {[%clk
0:00:52.2]} 28. Kxe1 {[%clk 0:00:19.4]} 28... Bg3+ {[%clk 0:00:46.8]} 29. Ke2
{[%clk 0:00:19.9]} 29... Bxh4 {[%clk 0:00:46.7]} 30. gxf6 {[%clk 0:00:20.4]}
30... Bxf6 {[%clk 0:00:45.2]} 31. f4 {[%clk 0:00:13.8]} 31... Kf7 {[%clk
0:00:38.4]} 32. Kf3 {[%clk 0:00:14.4]} 32... g6 {[%clk 0:00:31.1]} 33. Kg4
{[%clk 0:00:14.8]} 33... Ke7 {[%clk 0:00:29.8]} 34. Nc5 {[%clk 0:00:13.8]} 34...
b6 {[%clk 0:00:27.8]} 35. Nd3 {[%clk 0:00:14.3]} 35... Kd6 {[%clk 0:00:27.6]}
36. Ne5 {[%clk 0:00:07.3]} 36... c5 {[%clk 0:00:25.2]} 37. Nf3 {[%clk
0:00:04.9]} 37... cxd4 {[%clk 0:00:19.8]} 38. cxd4 {[%clk 0:00:05.8]} 38... Ke6
{[%clk 0:00:19]} 39. b3 {[%clk 0:00:06.3]} 39... h5+ {[%clk 0:00:15.8]} 40. Kg3
{[%clk 0:00:06.6]} 40... Kf5 {[%clk 0:00:15.3]} 41. Ne5 {[%clk 0:00:07]} 41...
g5 {[%clk 0:00:12.8]} 42. Nd3 {[%clk 0:00:03.3]} 42... h4+ {[%clk 0:00:08.4]}
43. Kg2 {[%clk 0:00:01.3]} 43... g4 {[%clk 0:00:08]} 44. Nb4 {[%clk 0:00:02.1]}
44... Ke4 {[%clk 0:00:07.3]} 45. Nc6 {[%clk 0:00:02.5]} 45... Bxd4 {[%clk
0:00:06.3]} 46. f5 {[%clk 0:00:02.3]} 46... Bf6 {[%clk 0:00:04.5]} 47. Nxa7
{[%clk 0:00:02.6]} 47... Kxf5 {[%clk 0:00:04.5]} 48. Nb5 {[%clk 0:00:02.4]}
48... d4 {[%clk 0:00:02.9]} 49. Nd6+ {[%clk 0:00:02.4]} 49... Kf4 {[%clk
0:00:03.1]} 50. Nc4 {[%clk 0:00:02.9]} 50... h3+ {[%clk 0:00:03.7]} 51. Kh2
{[%clk 0:00:03.1]} 51... d3 {[%clk 0:00:03.8]} 52. a4 {[%clk 0:00:03.7]} 52...
Bc3 {[%clk 0:00:03.5]} 53. Nxb6 {[%clk 0:00:03.8]} 53... Ke4 {[%clk 0:00:01.7]}
54. Nc4 {[%clk 0:00:04]} 54... d2 {[%clk 0:00:01.6]} 55. Nxd2+ {[%clk
0:00:02.7]} 55... Ke3 {[%clk 0:00:01.3]} 56. Kg3 {[%clk 0:00:03.6]} 56... Bxd2
{[%clk 0:00:02.2]} 57. b4 {[%clk 0:00:02.6]} 57... Ke2 {[%clk 0:00:01.9]} 58.
Kh2 {[%clk 0:00:03.5]} 58... Be1 {[%clk 0:00:02.8]} 59. b5 {[%clk 0:00:03.4]}
59... Kf3 {[%clk 0:00:03.7]} 60. b6 {[%clk 0:00:03.5]} 60... g3+ {[%clk
0:00:04.6]} 61. Kxh3 {[%clk 0:00:03.5]} 61... g2 {[%clk 0:00:05.5]} 62. b7
{[%clk 0:00:04.4]} 62... Kf2 {[%clk 0:00:06.4]} 63. b8=Q {[%clk 0:00:04.5]}
63... g1=Q {[%clk 0:00:07.3]} 64. Qh2+ {[%clk 0:00:04.4]} 64... Kf1 {[%clk
0:00:07.6]} 65. Qf4+ {[%clk 0:00:04.3]} 65... Qf2 {[%clk 0:00:07]} 66. Qc4+
{[%clk 0:00:03]} 66... Qe2 {[%clk 0:00:05.9]} 67. Qxe2+ {[%clk 0:00:02.8]} 67...
Kxe2 {[%clk 0:00:05.3]} 68. Kg4 {[%clk 0:00:03.7]} 68... Ba5 {[%clk 0:00:06]}
69. Kf5 {[%clk 0:00:04.6]} 69... Kd3 {[%clk 0:00:06.9]} 70. Ke5 {[%clk
0:00:05.5]} 70... Kc4 {[%clk 0:00:07.8]} 71. Kd6 {[%clk 0:00:05.9]} 71... Kb4
{[%clk 0:00:08.7]} 72. Ke5 {[%clk 0:00:06.8]} 72... Kxa4 {[%clk 0:00:09.6]}
1/2-1/2

[Event "*** Titled Tuesday Blitz"]
[Site "Chess.com"]
[Date "2020.05.05"]
[Round "2"]
[White "penguingm1"]
[Black "Mesa_1"]
[Result "1/2-1/2"]
[WhiteElo "2816"]
[BlackElo "2454"]
[TimeControl "180+1"]
[EndTime "10:20:08 PDT"]
[Termination "Game drawn by repetition"]

1. d4 {[%clk 0:02:52.3]} 1... d5 {[%clk 0:02:59.8]} 2. Bf4 {[%clk 0:02:36.1]}
2... Nf6 {[%clk 0:02:56]} 3. e3 {[%clk 0:02:26.2]} 3... e6 {[%clk 0:02:55.6]} 4.
Nf3 {[%clk 0:02:25.5]} 4... Bd6 {[%clk 0:02:56]} 5. Bd3 {[%clk 0:02:25.1]} 5...
O-O {[%clk 0:02:43.3]} 6. Nbd2 {[%clk 0:02:24.2]} 6... Bxf4 {[%clk 0:02:42.3]}
7. exf4 {[%clk 0:02:24.3]} 7... b6 {[%clk 0:02:42.9]} 8. Qe2 {[%clk 0:02:23.2]}
8... a5 {[%clk 0:02:42.7]} 9. Ne5 {[%clk 0:02:21.3]} 9... c5 {[%clk 0:02:40.1]}
10. c3 {[%clk 0:02:20.4]} 10... Ba6 {[%clk 0:02:35.4]} 11. O-O {[%clk
0:02:20.3]} 11... Bxd3 {[%clk 0:02:33.1]} 12. Qxd3 {[%clk 0:02:18.7]} 12... Qd6
{[%clk 0:02:32.6]} 13. f5 {[%clk 0:02:18.8]} 13... Nc6 {[%clk 0:02:24.3]} 14.
Ndf3 {[%clk 0:02:17.9]} 14... cxd4 {[%clk 0:02:22.7]} 15. Nxc6 {[%clk
0:02:08.1]} 15... Qxc6 {[%clk 0:02:23.6]} 16. fxe6 {[%clk 0:01:59.3]} 16... Qxe6
{[%clk 0:02:16.7]} 17. Nxd4 {[%clk 0:01:56.8]} 17... Qd7 {[%clk 0:02:12.9]} 18.
Rad1 {[%clk 0:01:52.5]} 18... Rfe8 {[%clk 0:02:12.3]} 19. h3 {[%clk 0:01:51.6]}
19... g6 {[%clk 0:02:10.8]} 20. Nb5 {[%clk 0:01:51.2]} 20... Rad8 {[%clk
0:02:05.5]} 21. a4 {[%clk 0:01:50.6]} 21... Re4 {[%clk 0:02:03.4]} 22. b3 {[%clk
0:01:44.7]} 22... Rde8 {[%clk 0:01:59.3]} 23. Qf3 {[%clk 0:01:35.3]} 23... Qe7
{[%clk 0:01:54]} 24. Nd4 {[%clk 0:01:31.8]} 24... Kg7 {[%clk 0:01:52]} 25. Nc2
{[%clk 0:01:29.8]} 25... Qe5 {[%clk 0:01:46]} 26. Rd3 {[%clk 0:01:29.7]} 26...
h5 {[%clk 0:01:45.4]} 27. Ne3 {[%clk 0:01:29.8]} 27... Rf4 {[%clk 0:01:40.4]}
28. Qd1 {[%clk 0:01:27]} 28... Rc8 {[%clk 0:01:34.9]} 29. c4 {[%clk 0:01:22.3]}
29... dxc4 {[%clk 0:01:20.9]} 30. Nxc4 {[%clk 0:01:23.2]} 30... Qc5 {[%clk
0:01:20.2]} 31. g3 {[%clk 0:01:17.2]} 31... Rxc4 {[%clk 0:00:54.7]} 32. bxc4
{[%clk 0:01:18.1]} 32... Qxc4 {[%clk 0:00:55.2]} 33. Rd4 {[%clk 0:01:07.2]}
33... Qa2 {[%clk 0:00:49.2]} 34. Qf3 {[%clk 0:01:04.8]} 34... Rc4 {[%clk
0:00:42.8]} 35. Rd6 {[%clk 0:01:01.5]} 35... Qb2 {[%clk 0:00:39.5]} 36. Qe3
{[%clk 0:00:49.5]} 36... Rxa4 {[%clk 0:00:35]} 37. Rxb6 {[%clk 0:00:49.4]} 37...
Rb4 {[%clk 0:00:34.7]} 38. Ra6 {[%clk 0:00:45.6]} 38... a4 {[%clk 0:00:30]} 39.
Ra7 {[%clk 0:00:45.6]} 39... Qb3 {[%clk 0:00:29]} 40. Qe7 {[%clk 0:00:42.6]}
40... Re4 {[%clk 0:00:25.3]} 41. Qd6 {[%clk 0:00:37.7]} 41... h4 {[%clk
0:00:22.7]} 42. Ra8 {[%clk 0:00:36.4]} 42... Ne8 {[%clk 0:00:16.9]} 43. Qc6
{[%clk 0:00:31.8]} 43... Re6 {[%clk 0:00:12.9]} 44. Qxa4 {[%clk 0:00:32]} 44...
Qxa4 {[%clk 0:00:13.2]} 45. Rxa4 {[%clk 0:00:32.8]} 45... hxg3 {[%clk
0:00:13.8]} 46. fxg3 {[%clk 0:00:33.5]} 46... f5 {[%clk 0:00:14.2]} 47. Ra7+
{[%clk 0:00:31.3]} 47... Kh6 {[%clk 0:00:14.2]} 48. Kf2 {[%clk 0:00:22]} 48...
Nf6 {[%clk 0:00:14.2]} 49. Re1 {[%clk 0:00:22.4]} 49... Ne4+ {[%clk 0:00:14.2]}
50. Kg2 {[%clk 0:00:22.9]} 50... Rb6 {[%clk 0:00:14.8]} 51. Ra3 {[%clk
0:00:19.3]} 51... Rb2+ {[%clk 0:00:14.5]} 52. Kg1 {[%clk 0:00:19.7]} 52... Nf2
{[%clk 0:00:14]} 53. h4 {[%clk 0:00:08.1]} 53... Ng4 {[%clk 0:00:13]} 54. Rf3
{[%clk 0:00:06.5]} 54... Rb4 {[%clk 0:00:12]} 55. Rd3 {[%clk 0:00:06.6]} 55...
Kh5 {[%clk 0:00:10.5]} 56. Rd2 {[%clk 0:00:06.8]} 56... Rb3 {[%clk 0:00:10.6]}
57. Kg2 {[%clk 0:00:07.3]} 57... Ne3+ {[%clk 0:00:09.9]} 58. Kh3 {[%clk
0:00:07.5]} 58... Ng4 {[%clk 0:00:10.8]} 59. Rf1 {[%clk 0:00:05.9]} 59... Rc3
{[%clk 0:00:09.5]} 60. Rf4 {[%clk 0:00:05.9]} 60... Ne3 {[%clk 0:00:07.1]} 61.
Rd8 {[%clk 0:00:05.5]} 61... Kh6 {[%clk 0:00:06.6]} 62. Rd6 {[%clk 0:00:05.3]}
62... Rc1 {[%clk 0:00:05.9]} 63. Kh2 {[%clk 0:00:04.9]} 63... Ng4+ {[%clk
0:00:05.8]} 64. Kg2 {[%clk 0:00:05.2]} 64... Rc2+ {[%clk 0:00:06]} 65. Kg1
{[%clk 0:00:05.5]} 65... Rc1+ {[%clk 0:00:06.2]} 66. Rf1 {[%clk 0:00:05.9]}
66... Rc2 {[%clk 0:00:06.3]} 67. Rxf5 {[%clk 0:00:05.7]} 67... Rc1+ {[%clk
0:00:04.8]} 68. Rf1 {[%clk 0:00:05.7]} 68... Rc3 {[%clk 0:00:04.4]} 69. Rff6
{[%clk 0:00:03.3]} 69... Nxf6 {[%clk 0:00:03.4]} 70. Rxf6 {[%clk 0:00:02.5]}
70... Rxg3+ {[%clk 0:00:03.9]} 71. Kh2 {[%clk 0:00:03.1]} 71... Rg4 {[%clk
0:00:04.8]} 72. Kh3 {[%clk 0:00:03.6]} 72... Kh5 {[%clk 0:00:05.1]} 73. Rf8
{[%clk 0:00:03.2]} 73... Rxh4+ {[%clk 0:00:05.4]} 74. Kg3 {[%clk 0:00:03.9]}
74... Rg4+ {[%clk 0:00:06]} 75. Kh3 {[%clk 0:00:04.6]} 75... Kg5 {[%clk
0:00:06.8]} 76. Ra8 {[%clk 0:00:04.6]} 76... Rh4+ {[%clk 0:00:07]} 77. Kg3
{[%clk 0:00:05.3]} 77... Rg4+ {[%clk 0:00:07.9]} 78. Kh3 {[%clk 0:00:06]} 78...
Rc4 {[%clk 0:00:08.3]} 79. Ra5+ {[%clk 0:00:05.9]} 79... Kh6 {[%clk 0:00:08.5]}
80. Kg3 {[%clk 0:00:06.3]} 80... Rc3+ {[%clk 0:00:08.3]} 81. Kg4 {[%clk
0:00:06.8]} 81... Rc4+ {[%clk 0:00:09.2]} 82. Kg3 {[%clk 0:00:07.4]} 82... Rc3+
{[%clk 0:00:09.6]} 83. Kg4 {[%clk 0:00:07.9]} 83... Rc4+ {[%clk 0:00:09.9]} 84.
Kg3 {[%clk 0:00:08.5]} 1/2-1/2

[Event "*** Titled Tuesday Blitz"]
[Site "Chess.com"]
[Date "2020.05.05"]
[Round "2"]
[White "IsaacWiebe"]
[Black "WanderingPuppet"]
[Result "1/2-1/2"]
[WhiteElo "2139"]
[BlackElo "2385"]
[TimeControl "180+1"]
[EndTime "10:20:11 PDT"]
[Termination "Game drawn by agreement"]

1. d4 {[%clk 0:03:00.9]} 1... Nf6 {[%clk 0:02:59.4]} 2. c4 {[%clk 0:03:01]} 2...
g6 {[%clk 0:02:59.8]} 3. Nc3 {[%clk 0:03:01.1]} 3... Bg7 {[%clk 0:03:00.2]} 4.
e4 {[%clk 0:03:01]} 4... O-O {[%clk 0:03:00.6]} 5. Be2 {[%clk 0:03:01.3]} 5...
d6 {[%clk 0:03:01.1]} 6. Nf3 {[%clk 0:03:01.8]} 6... c5 {[%clk 0:03:01.4]} 7.
O-O {[%clk 0:02:54.2]} 7... cxd4 {[%clk 0:03:01.1]} 8. Nxd4 {[%clk 0:02:54.1]}
8... Bd7 {[%clk 0:03:02]} 9. Be3 {[%clk 0:02:53.5]} 9... Nc6 {[%clk 0:03:02.5]}
10. h3 {[%clk 0:02:47.2]} 10... Qa5 {[%clk 0:03:00.5]} 11. Qd2 {[%clk
0:02:38.4]} 11... Rfc8 {[%clk 0:02:59.6]} 12. Rac1 {[%clk 0:02:35.2]} 12... a6
{[%clk 0:02:58.8]} 13. Rfd1 {[%clk 0:02:33.7]} 13... Ne5 {[%clk 0:02:54.8]} 14.
b3 {[%clk 0:02:33.3]} 14... Nc6 {[%clk 0:02:31.7]} 15. f4 {[%clk 0:02:29.3]}
15... Nxd4 {[%clk 0:02:29.3]} 16. Bxd4 {[%clk 0:02:29]} 16... Bc6 {[%clk
0:02:29]} 17. Bf3 {[%clk 0:02:28.6]} 17... Nd7 {[%clk 0:02:25.9]} 18. Bxg7
{[%clk 0:02:25.7]} 18... Kxg7 {[%clk 0:02:26.8]} 19. Qd4+ {[%clk 0:02:25.3]}
19... Kg8 {[%clk 0:02:26.9]} 20. Nd5 {[%clk 0:02:24.2]} 20... Bxd5 {[%clk
0:02:22.9]} 21. exd5 {[%clk 0:02:22.3]} 21... Qc5 {[%clk 0:02:18.6]} 22. Qxc5
{[%clk 0:02:20.3]} 22... Nxc5 {[%clk 0:02:19.5]} 23. Kf2 {[%clk 0:01:58.4]}
23... Rc7 {[%clk 0:02:14.8]} 24. h4 {[%clk 0:01:21.1]} 24... Rac8 {[%clk
0:02:12.9]} 25. h5 {[%clk 0:01:20.1]} 25... b5 {[%clk 0:02:10.8]} 26. hxg6
{[%clk 0:01:18.4]} 26... hxg6 {[%clk 0:02:11.7]} 27. Be2 {[%clk 0:01:14.4]}
27... b4 {[%clk 0:02:02.1]} 28. Rh1 {[%clk 0:01:03.9]} 28... Kg7 {[%clk
0:01:49.9]} 29. Ke3 {[%clk 0:00:54.3]} 29... a5 {[%clk 0:01:48.3]} 30. Rh2
{[%clk 0:00:43.7]} 30... Rh8 {[%clk 0:01:47.3]} 31. Rxh8 {[%clk 0:00:42.6]}
31... Kxh8 {[%clk 0:01:48.2]} 32. Rh1+ {[%clk 0:00:42.5]} 32... Kg7 {[%clk
0:01:48.7]} 33. Bd1 {[%clk 0:00:41.8]} 33... Ra7 {[%clk 0:01:45.5]} 34. Kd4
{[%clk 0:00:31.3]} 34... a4 {[%clk 0:01:32.4]} 35. Re1 {[%clk 0:00:22.2]} 35...
axb3 {[%clk 0:01:30.7]} 36. Bxb3 {[%clk 0:00:23.1]} 36... Kf6 {[%clk 0:00:52.5]}
37. g4 {[%clk 0:00:22.2]} 37... e6 {[%clk 0:00:47.4]} 38. dxe6 {[%clk
0:00:21.5]} 38... fxe6 {[%clk 0:00:48.2]} 39. g5+ {[%clk 0:00:21.6]} 39... Kf7
{[%clk 0:00:38.5]} 40. Rh1 {[%clk 0:00:20.5]} 40... Kg7 {[%clk 0:00:36.2]} 41.
Re1 {[%clk 0:00:19.9]} 41... Rf7 {[%clk 0:00:32.3]} 42. Ke3 {[%clk 0:00:18.8]}
42... e5 {[%clk 0:00:21.4]} 43. fxe5 {[%clk 0:00:19]} 43... dxe5 {[%clk
0:00:22.3]} 44. Rd1 {[%clk 0:00:18.7]} 44... Rf5 {[%clk 0:00:17.6]} 45. Rd5
{[%clk 0:00:18.7]} 45... Nxb3 {[%clk 0:00:16.5]} 46. axb3 {[%clk 0:00:19.6]}
46... Rxg5 {[%clk 0:00:16.9]} 47. Rb5 {[%clk 0:00:19.8]} 47... Rg3+ {[%clk
0:00:16.4]} 48. Ke4 {[%clk 0:00:19.9]} 48... Rxb3 {[%clk 0:00:16.8]} 49. Kxe5
{[%clk 0:00:19.4]} 49... Rb1 {[%clk 0:00:15.4]} 50. c5 {[%clk 0:00:19.6]} 50...
Rc1 {[%clk 0:00:14.2]} 51. Rxb4 {[%clk 0:00:18.4]} 51... Rxc5+ {[%clk
0:00:13.7]} 52. Kf4 {[%clk 0:00:18.6]} 52... Rc1 {[%clk 0:00:07.6]} 53. Kg3
{[%clk 0:00:18.4]} 53... Kh6 {[%clk 0:00:07.2]} 54. Rb5 {[%clk 0:00:17.5]} 54...
Rc4 {[%clk 0:00:05.5]} 55. Ra5 {[%clk 0:00:17.4]} 55... g5 {[%clk 0:00:05.3]}
56. Rb5 {[%clk 0:00:17.3]} 56... Kh5 {[%clk 0:00:05.4]} 57. Rb8 {[%clk
0:00:16.9]} 57... Rc3+ {[%clk 0:00:05.4]} 58. Kg2 {[%clk 0:00:17.1]} 58... Kg4
{[%clk 0:00:05.6]} 59. Rb4+ {[%clk 0:00:16.8]} 59... Kh5 {[%clk 0:00:05.9]} 60.
Ra4 {[%clk 0:00:16.8]} 60... g4 {[%clk 0:00:06]} 61. Rb4 {[%clk 0:00:17]} 61...
Kh4 {[%clk 0:00:06.2]} 62. Ra4 {[%clk 0:00:16.6]} 62... Rc2+ {[%clk 0:00:06.5]}
63. Kg1 {[%clk 0:00:16.3]} 63... Kh3 {[%clk 0:00:06.4]} 64. Ra3+ {[%clk
0:00:12.2]} 64... g3 {[%clk 0:00:05.7]} 65. Ra1 {[%clk 0:00:12.2]} 65... Kg4
{[%clk 0:00:05]} 66. Re1 {[%clk 0:00:11.2]} 66... Kf3 {[%clk 0:00:04.4]} 67.
Rf1+ {[%clk 0:00:11]} 67... Kg4 {[%clk 0:00:04.4]} 68. Re1 {[%clk 0:00:11.1]}
68... Kh3 {[%clk 0:00:04.4]} 69. Rd1 {[%clk 0:00:10.3]} 69... Rf2 {[%clk
0:00:03.7]} 70. Re1 {[%clk 0:00:09.7]} 70... Kg4 {[%clk 0:00:03.2]} 71. Rd1
{[%clk 0:00:09.7]} 71... Kf3 {[%clk 0:00:03]} 72. Rd3+ {[%clk 0:00:09.8]} 72...
Kg4 {[%clk 0:00:02]} 73. Rd1 {[%clk 0:00:09.9]} 73... Kh3 {[%clk 0:00:02.9]} 74.
Rc1 {[%clk 0:00:09.6]} 74... Rg2+ {[%clk 0:00:03.8]} 75. Kh1 {[%clk 0:00:09.7]}
75... Rh2+ {[%clk 0:00:04.7]} 76. Kg1 {[%clk 0:00:10]} 76... Rg2+ {[%clk
0:00:05.6]} 77. Kh1 {[%clk 0:00:10.3]} 77... Rh2+ {[%clk 0:00:06.5]} 78. Kg1
{[%clk 0:00:10.6]} 78... Rf2 {[%clk 0:00:06.5]} 79. Rd1 {[%clk 0:00:10.1]} 79...
Rg2+ {[%clk 0:00:06.4]} 80. Kh1 {[%clk 0:00:09.2]} 80... Rh2+ {[%clk 0:00:07.3]}
81. Kg1 {[%clk 0:00:09.6]} 81... Rg2+ {[%clk 0:00:08.2]} 82. Kh1 {[%clk
0:00:09.9]} 82... Rh2+ {[%clk 0:00:07.8]} 1/2-1/2